fUST/lending_fUST_20240831
["ID","MTS","AMOUNT","RATE_DAILY","PERIOD"]
[336714929,1725057091988,-500.0,0.00035068,31]
[336714930,1725057091997,-672.59,0.00035068,31]
[336714931,1725057092006,-500.0,0.00035068,31]
[336714932,1725057092016,-695.69,0.00035068,31]
[336714933,1725057092025,-564.46,0.00035068,31]
[336714934,1725057092035,-500.0,0.00035068,31]
[336714935,1725057092044,-500.0,0.00035068,31]
[336714936,1725057092053,-646.47,0.00035068,31]
[336714937,1725057092062,-178.75819421,0.00035068,31]
[336714938,1725057092072,-500.0,0.00035068,31]
[336714939,1725057092082,-500.0,0.00035068,31]
[336714940,1725057092092,-500.0,0.00035068,31]
[336714941,1725057092102,-500.0,0.00035068,31]
[336714942,1725057092112,-500.0,0.00035068,31]
[336714943,1725057092121,-500.0,0.00035068,31]
[336714944,1725057092131,-1042.25,0.00035068,31]
[336714945,1725057092140,-500.0,0.00035068,31]
[336714946,1725057092150,-500.0,0.00035068,31]
[336714947,1725057092159,-500.0,0.00035068,31]
[336714948,1725057092169,-500.0,0.00035068,31]
[336714949,1725057092178,-500.0,0.00035068,31]
[336714950,1725057092187,-500.0,0.00035068,31]
[336714951,1725057092196,-500.0,0.00035068,31]
[336714952,1725057092205,-677.86,0.00035068,31]
[336714953,1725057092215,-500.0,0.00035068,31]
[336714954,1725057092224,-500.0,0.00035068,31]
[336714955,1725057092233,-1310.93,0.00035068,31]
[336714956,1725057092243,-208.58626124,0.00035068,31]
[336714957,1725057092253,-343.73803936,0.00035068,31]
[336714958,1725057092264,-500.0,0.00035068,31]
[336714959,1725057092274,-500.0,0.00035068,31]
[336714960,1725057092284,-500.0,0.00035068,31]
[336714961,1725057092293,-500.0,0.00035068,31]
[336714962,1725057092302,-500.0,0.00035068,31]
[336714963,1725057092311,-441.01,0.00035068,31]
[336714964,1725057092320,-500.0,0.00035068,31]
[336714965,1725057092330,-500.0,0.00035068,31]
[336714966,1725057092341,-500.0,0.00035068,31]
[336714967,1725057092351,-500.0,0.00035068,31]
[336714968,1725057092362,-641.89,0.00035068,31]
[336714969,1725057092372,-500.0,0.00035068,31]
[336714970,1725057092381,-500.0,0.00035068,31]
[336714971,1725057092390,-500.0,0.00035068,31]
[336714972,1725057092400,-549.34592282,0.00035068,31]
[336714973,1725057092409,-500.0,0.00035068,31]
[336714974,1725057092419,-500.0,0.00035068,31]
[336714975,1725057092429,-500.0,0.00035068,31]
[336714976,1725057092441,-177.76158407,0.00035068,31]
[336714977,1725057092450,-1166.22,0.00035068,31]
[336714978,1725057092460,-694.18,0.00035068,31]
[336714979,1725057092469,-500.0,0.00035068,31]
[336714980,1725057092481,-730.39,0.00035068,31]
[336714981,1725057092491,-442.63138611,0.00035068,31]
[336714982,1725057092501,-500.0,0.00035068,31]
[336714983,1725057092511,-234.32165661,0.00035068,31]
[336714984,1725057092520,-500.0,0.00035068,30]
[336714985,1725057092530,-1280.82,0.00035068,31]
[336714986,1725057092539,-500.0,0.00035068,31]
[336714987,1725057092548,-500.0,0.00035068,31]
[336714988,1725057092557,-934.3,0.00035068,31]
[336714989,1725057092567,-500.0,0.00035068,31]
[336714990,1725057092576,-1857.92,0.00035068,31]
[336714991,1725057092586,-500.0,0.00035068,31]
[336714992,1725057092596,-500.0,0.00035068,31]
[336714993,1725057092606,-2435.08,0.00035068,31]
[336714994,1725057092615,-500.0,0.00035068,31]
[336714995,1725057092624,-500.0,0.00035068,31]
[336714996,1725057092633,-6120.61,0.00035068,31]
[336714997,1725057092643,-369.12552621,0.00035068,31]
[336714998,1725057092652,-500.0,0.00035068,31]
[336714999,1725057092661,-702.58,0.00035068,31]
[336715000,1725057092670,-3703.23,0.00035068,31]
[336715001,1725057092680,-500.0,0.00035068,31]
[336715002,1725057092690,-500.0,0.00035068,31]
[336715003,1725057092699,-701.31,0.00035068,31]
[336715004,1725057092709,-500.0,0.00035068,31]
[336715005,1725057092719,-500.0,0.00035068,31]
[336715006,1725057092728,-500.0,0.00035068,31]
[336715007,1725057092737,-500.0,0.00035068,31]
[336715008,1725057092746,-611.42,0.00035068,31]
[336715009,1725057092755,-13818.2,0.00035068,8]
[336715010,1725057092764,-500.0,0.00035068,31]
[336715011,1725057092774,-613.16,0.00035068,31]
[336715012,1725057092783,-6483.68,0.00035068,31]
[336715013,1725057092794,-1464.41,0.00035068,21]
[336715014,1725057092806,-777.86,0.00035068,31]
[336715015,1725057092816,-500.0,0.00035068,31]
[336715016,1725057092828,-2087.42,0.00035068,31]
[336715017,1725057092839,-530.16,0.00035068,31]
[336715018,1725057092850,-500.0,0.00035068,31]
[336715019,1725057092861,-2489.9,0.00035068,31]
[336715020,1725057092870,-500.0,0.00035068,31]
[336715021,1725057092879,-622.06,0.00035068,31]
[336715022,1725057092890,-500.0,0.00035068,31]
[336715023,1725057092901,-596.35,0.00035068,31]
[336715024,1725057092910,-3313.15,0.00035068,31]
[336715025,1725057092919,-500.0,0.00035068,31]
[336715026,1725057092928,-573.31,0.00035068,31]
[336715027,1725057092940,-500.0,0.00035068,31]
[336715028,1725057092951,-500.0,0.00035068,31]
[336715029,1725057092961,-500.0,0.00035068,31]
[336715030,1725057092970,-500.0,0.00035068,31]
[336715031,1725057092980,-500.0,0.00035068,31]
[336715032,1725057092989,-1916.93,0.00035068,31]
[336715033,1725057092998,-500.0,0.00035068,30]
[336715034,1725057093007,-3565.88,0.00035068,31]
[336715035,1725057093017,-500.0,0.00035068,31]
[336715036,1725057093027,-500.0,0.00035068,31]
[336715037,1725057093038,-500.0,0.00035068,31]
[336715038,1725057093047,-500.0,0.00035068,31]
[336715039,1725057093056,-601.7,0.00035068,31]
[336715040,1725057093066,-500.0,0.00035068,31]
[336715041,1725057093076,-577.99,0.00035068,31]
[336715042,1725057093087,-500.0,0.00035068,31]
[336715043,1725057093097,-563.28,0.00035068,31]
[336715044,1725057093106,-500.0,0.00035068,31]
[336715045,1725057093116,-500.0,0.00035068,31]
[336715046,1725057093126,-500.0,0.00035068,31]
[336715047,1725057093136,-500.0,0.00035068,31]
[336715048,1725057093146,-1368.87,0.00035068,31]
[336715049,1725057093156,-500.0,0.00035068,31]
[336715050,1725057093166,-500.0,0.00035068,31]
[336715051,1725057093175,-650.6,0.00035068,31]
[336715052,1725057093184,-500.0,0.00035068,31]
[336715053,1725057093195,-500.0,0.00035068,31]
[336715054,1725057093204,-500.0,0.00035068,31]
[336715055,1725057093216,-2132.56,0.00035068,31]
[336715056,1725057093227,-500.0,0.00035068,31]
[336715057,1725057093238,-723.24,0.00035068,31]
[336715058,1725057093249,-1500.65,0.00035068,31]
[336715059,1725057093258,-500.0,0.00035068,31]
[336715060,1725057093267,-646.01,0.00035068,31]
[336715061,1725057093276,-500.0,0.00035068,31]
[336715062,1725057093287,-500.0,0.00035068,31]
[336715063,1725057093296,-500.0,0.00035068,31]
[336715064,1725057093306,-500.0,0.00035068,31]
[336715065,1725057093315,-1443.75,0.00035068,31]
[336715066,1725057093325,-500.0,0.00035068,31]
[336715067,1725057093335,-552.69,0.00035068,31]
[336715068,1725057093345,-500.0,0.00035068,31]
[336715069,1725057093355,-500.0,0.00035068,31]
[336715070,1725057093365,-1404.3,0.00035068,31]
[336715071,1725057093375,-500.0,0.00035068,31]
[336715072,1725057093385,-586.11566558,0.00035068,31]
[336715073,1725057093395,-500.0,0.00035068,31]
[336715074,1725057093404,-500.0,0.00035068,31]
[336715075,1725057093414,-5867.45,0.00035068,31]
[336715076,1725057093424,-500.0,0.00035068,31]
[336715077,1725057093439,-500.0,0.00035068,31]
[336715078,1725057093449,-500.0,0.00035068,31]
[336715079,1725057093458,-500.0,0.00035068,31]
[336715080,1725057093468,-4257.49,0.00035068,31]
[336715081,1725057093479,-500.0,0.00035068,31]
[336715082,1725057093488,-500.0,0.00035068,31]
[336715083,1725057093498,-500.0,0.00035068,31]
[336715084,1725057093509,-500.0,0.00035068,31]
[336715085,1725057093519,-3047.7,0.00035068,31]
[336715086,1725057093528,-517.37,0.00035068,31]
[336715087,1725057093544,-500.0,0.00035068,31]
[336715088,1725057093556,-1721.11,0.00035068,31]
[336715089,1725057093565,-505.39564618,0.00035068,31]
[336715090,1725057093574,-503.0205231,0.00035068,31]
[336715091,1725057093583,-500.0,0.00035068,31]
[336715092,1725057093593,-500.0,0.00035068,31]
[336715093,1725057093602,-3355.58,0.00035068,31]
[336715094,1725057093611,-500.0,0.00035068,31]
[336715095,1725057093620,-500.0,0.00035068,31]
[336715096,1725057093630,-500.0,0.00035068,31]
[336715097,1725057093639,-500.0,0.00035068,31]
[336715098,1725057093648,-3616.94,0.00035068,31]
[336715099,1725057093657,-605.62,0.00035068,31]
[336715100,1725057093666,-500.0,0.00035068,2]
[336715101,1725057093676,-500.0,0.00035068,7]
[336715102,1725057093685,-500.0,0.00035068,31]
[336715103,1725057093695,-500.0,0.00035068,31]
[336715104,1725057093705,-543.86,0.00035068,31]
[336715105,1725057093714,-500.0,0.00035068,31]
[336715106,1725057093724,-500.0,0.00035068,31]
[336715107,1725057093733,-500.0,0.00035068,31]
[336715108,1725057093743,-500.0,0.00035068,31]
[336715109,1725057093754,-500.0,0.00035068,31]
[336715110,1725057093763,-819.21,0.00035068,31]
[336715111,1725057093773,-671.44,0.00035068,31]
[336715112,1725057093786,-500.0,0.00035068,31]
[336715113,1725057093796,-500.0,0.00035068,31]
[336715114,1725057093805,-500.0,0.00035068,31]
[336715115,1725057093816,-621.2,0.00035068,31]
[336715116,1725057093826,-500.0,0.00035068,31]
[336715117,1725057093836,-3466.91,0.00035068,31]
[336715118,1725057093846,-151.0,0.0003526,120]
[336715119,1725057093857,-204.0,0.000353,120]
[336715120,1725057093868,-500.0,0.000353,60]
[336715121,1725057093877,-783.74,0.000353,14]
[336715122,1725057093887,-151.0,0.00035302,15]
[336715123,1725057093896,-500.0,0.00035342,31]
[336715124,1725057093906,-500.0,0.00035342,31]
[336715125,1725057093916,-500.0,0.00035342,31]
[336715126,1725057093926,-500.0,0.00035342,31]
[336715127,1725057093936,-500.0,0.00035342,31]
[336715128,1725057093945,-500.0,0.00035342,31]
[336715129,1725057093955,-500.0,0.00035342,31]
[336715130,1725057093965,-503.72413008,0.00035342,31]
[336715131,1725057093974,-500.0,0.00035342,31]
[336715132,1725057093984,-500.0,0.00035342,31]
[336715133,1725057093994,-408.24134108,0.00035342,31]
[336715134,1725057094004,-583.91,0.00035342,31]
[336715135,1725057094014,-500.0,0.00035342,14]
[336715136,1725057094023,-562.69,0.00035342,7]
[336715137,1725057094036,-500.0,0.00035342,31]
[336715138,1725057094047,-500.0,0.00035342,31]
[336715139,1725057094056,-500.0,0.00035342,31]
[336715140,1725057094067,-500.0,0.00035342,31]
[336715141,1725057094077,-500.0,0.00035342,31]
[336715142,1725057094086,-500.0,0.00035342,31]
[336715143,1725057094096,-500.0,0.00035342,31]
[336715144,1725057094106,-587.03536857,0.00035342,31]
[336715145,1725057094116,-500.0,0.00035342,31]
[336715146,1725057094126,-547.63,0.00035342,31]
[336715147,1725057094138,-535.98,0.00035342,31]
[336715148,1725057094149,-500.0,0.00035342,31]
[336715149,1725057094158,-1325.4,0.00035342,31]
[336715150,1725057094168,-500.0,0.00035342,31]
[336715151,1725057094178,-501.14,0.00035342,31]
[336715152,1725057094188,-500.0,0.00035342,31]
[336715153,1725057094200,-500.0,0.00035342,31]
[336715154,1725057094210,-500.0,0.00035342,31]
[336715155,1725057094220,-500.0,0.00035342,31]
[336715156,1725057094231,-541.66,0.00035342,31]
[336715157,1725057094241,-349.56440575,0.00035342,31]
[336715158,1725057094251,-355.27794363,0.00035342,31]
[336715159,1725057094261,-504.26,0.00035342,31]
[336715160,1725057094271,-500.0,0.00035342,31]
[336715161,1725057094281,-687.83,0.00035342,31]
[336715162,1725057094290,-500.0,0.00035342,31]
[336715163,1725057094300,-586.81,0.00035342,31]
[336715164,1725057094311,-500.0,0.00035342,31]
[336715165,1725057094322,-673.3,0.00035342,31]
[336715166,1725057094331,-500.0,0.00035342,31]
[336715167,1725057094341,-500.0,0.00035342,31]
[336715168,1725057094351,-732.58,0.00035342,31]
[336715169,1725057094362,-500.0,0.00035342,31]
[336715170,1725057094372,-500.0,0.00035342,31]
[336715171,1725057094382,-500.0,0.00035342,31]
[336715172,1725057094391,-500.0,0.00035342,31]
[336715173,1725057094401,-701.31,0.00035342,31]
[336715174,1725057094411,-860.73,0.00035342,31]
[336715175,1725057094420,-602.15,0.00035342,31]
[336715176,1725057094434,-500.0,0.00035342,31]
[336715177,1725057094445,-513.37,0.00035342,31]
[336715178,1725057094455,-500.0,0.00035342,31]
[336715179,1725057094465,-500.0,0.00035342,31]
[336715180,1725057094475,-672.59,0.00035342,31]
[336715181,1725057094485,-500.0,0.00035342,31]
[336715182,1725057094495,-695.69,0.00035342,31]
[336715183,1725057094505,-564.46,0.00035342,31]
[336715184,1725057094516,-500.0,0.00035342,31]
[336715185,1725057094526,-500.0,0.00035342,31]
[336715186,1725057094537,-646.47,0.00035342,31]
[336715187,1725057094547,-500.0,0.00035342,31]
[336715188,1725057094557,-500.0,0.00035342,31]
[336715189,1725057094567,-500.0,0.00035342,31]
[336715190,1725057094578,-500.0,0.00035342,31]
[336715191,1725057094587,-500.0,0.00035342,31]
[336715192,1725057094597,-241.88305245,0.00035342,31]
[336715193,1725057094607,-1042.25,0.00035342,31]
[336715194,1725057094616,-500.0,0.00035342,31]
[336715195,1725057094626,-419.52877856,0.00035342,31]
[336715196,1725057094636,-500.0,0.00035342,31]
[336715197,1725057094648,-500.0,0.00035342,31]
[336715198,1725057094660,-500.0,0.00035342,31]
[336715199,1725057094671,-500.0,0.00035342,31]
[336715200,1725057094680,-677.86,0.00035342,31]
[336715201,1725057094690,-500.0,0.00035342,31]
[336715202,1725057094700,-500.0,0.00035342,31]
[336715203,1725057094709,-1310.93,0.00035342,31]
[336715204,1725057094721,-500.0,0.00035342,31]
[336715205,1725057094733,-233.56217843,0.00035342,31]
[336715206,1725057094742,-500.0,0.00035342,31]
[336715207,1725057094752,-500.0,0.00035342,31]
[336715208,1725057094762,-500.0,0.00035342,31]
[336715209,1725057094771,-500.0,0.00035342,31]
[336715210,1725057094781,-500.0,0.00035342,31]
[336715211,1725057094791,-500.0,0.00035342,31]
[336715212,1725057094800,-500.0,0.00035342,31]
[336715213,1725057094811,-641.89,0.00035342,31]
[336715214,1725057094939,-500.0,0.00035342,31]
[336715215,1725057094949,-399.5696195,0.00035342,31]
[336715216,1725057094959,-500.0,0.00035342,31]
[336715217,1725057094969,-500.0,0.00035342,31]
[336715218,1725057094979,-500.0,0.00035342,31]
[336715219,1725057094991,-500.0,0.00035342,31]
[336715220,1725057095001,-1166.22,0.00035342,31]
[336715221,1725057095011,-694.18,0.00035342,31]
[336715222,1725057095020,-500.0,0.00035342,31]
[336715223,1725057095031,-730.39,0.00035342,31]
[336715224,1725057095040,-500.0,0.00035342,31]
[336715225,1725057095050,-500.0,0.00035342,30]
[336715226,1725057095059,-1083.79517628,0.00035342,31]
[336715227,1725057095617,-309.14000994,0.00030442,7]
[336715228,1725057095628,-197.02482372,0.00035342,31]
[336715229,1725057095640,-500.0,0.00035342,31]
[336715230,1725057095651,-500.0,0.00035342,31]
[336715231,1725057095660,-514.95811534,0.00035342,31]
[336715243,1725057379110,163.967185,0.00014247,2]
[336715244,1725057418515,-157.26907,0.0001863,2]
[336715260,1725057952197,-163.967185,0.00024475,2]
[336715261,1725057952224,-157.26907,0.00028493,2]
[336715262,1725057952247,-201.1831502,0.00029633,2]
[336715263,1725057952272,-842.9350484,0.00029811,2]
[336715264,1725057952299,-2279.0688059,0.00029865,2]
[336715265,1725057952531,-2385.0729583,0.00029906,2]
[336715266,1725057952554,-2351.9366319,0.00030344,2]
[336715267,1725057952576,-166.666666,0.00030572,2]
[336715268,1725057952598,-166.666666,0.00031368,2]
[336715269,1725057952620,-166.666666,0.00032165,2]
[336715270,1725057952642,-1194.86481197,0.00032776,2]
[336715272,1725057966517,-157.26907,0.0001863,2]
[336715303,1725058232546,-157.26907,0.00030466,2]
[336715304,1725058232557,-119.04972854,0.00032766,2]
[336715305,1725058232577,-1880.95027146,0.00032766,2]
[336715306,1725058232588,-2501.083944,0.00032776,2]
[336715307,1725058232598,-1800.67,0.00032856,3]
[336715308,1725058232608,-351.60040558,0.00032856,3]
[336715309,1725058232621,-1148.95959442,0.00032856,3]
[336715310,1725058232632,-1521.76335366,0.00032866,4]
[336715336,1725058240859,-3991.07974589,0.00032776,2]
[336715337,1725058240869,-80599.71231698,0.00032866,4]
[336715338,1725058240880,-728.23,0.00032866,4]
[336715339,1725058240892,-3391.76335903,0.00032866,4]
[336715343,1725058243794,-220.22222829,0.00032856,3]
[336715344,1725058243906,-1030.23777171,0.00032856,3]
[336715345,1725058243916,-1067.35085714,0.00032866,4]
[336715361,1725058395626,163.967185,0.00014247,2]
[336715363,1725058449213,-161.489587,0.0001863,2]
[336715377,1725058938718,-161.489587,0.0001863,2]
[336715383,1725059159180,-163.967185,0.00026521,2]
[336715384,1725059159207,-236.6505785,0.00030071,2]
[336715385,1725059159232,-189.7418348,0.00030153,2]
[336715386,1725059159258,-161.948242,0.00030352,2]
[336715387,1725059159283,-161.948242,0.00030458,2]
[336715388,1725059159309,-161.948242,0.00030563,2]
[336715389,1725059159335,-161.948242,0.00030669,2]
[336715390,1725059159361,-161.948242,0.00030774,2]
[336715391,1725059159387,-161.948242,0.00030879,2]
[336715392,1725059159413,-161.948242,0.00030985,2]
[336715393,1725059159436,-161.948242,0.0003109,2]
[336715394,1725059159459,-161.948242,0.00031196,2]
[336715395,1725059159482,-161.948242,0.00031301,2]
[336715396,1725059159506,-161.948242,0.00031407,2]
[336715397,1725059159529,-161.948242,0.00031512,2]
[336715398,1725059159553,-161.948242,0.00031618,2]
[336715399,1725059159577,-161.948242,0.00031723,2]
[336715400,1725059159598,-161.948242,0.00031829,2]
[336715401,1725059159621,-161.948242,0.00031934,2]
[336715402,1725059159643,-2000.0,0.00032766,2]
[336715403,1725059159664,-2068.50959325,0.00032776,2]
[336715404,1725059159685,-1722.47,0.00032856,3]
[336715405,1725059159706,-1435.39,0.00032856,3]
[336715406,1725059159731,-500.0,0.00032865,2]
[336715407,1725059159755,-500.0,0.00032865,2]
[336715408,1725059159777,-240.74688974,0.00032865,2]
[336715409,1725059159798,-3195.38812911,0.00032865,5]
[336715410,1725059159820,-815.61935374,0.00032866,4]
[336715434,1725059438180,-798.24979877,0.00028787,2]
[336715435,1725059438191,-2000.0,0.00032766,2]
[336715436,1725059438202,-1861.65863388,0.00032776,2]
[336715437,1725059438213,-1196.16,0.00032856,3]
[336715438,1725059438223,-1188.3,0.00032856,3]
[336715439,1725059438233,-500.0,0.00032865,2]
[336715440,1725059438243,-368.52282282,0.00032865,2]
[336715441,1725059438254,-1597.69406456,0.00032865,5]
[336715442,1725059438265,-98187.60382148,0.00032866,4]
[336715443,1725059438279,-3017.52691722,0.00032866,4]
[336715451,1725059440283,-87183.33901686,0.00032866,4]
[336715452,1725059440332,-9298.99539518,0.00032866,4]
[336715454,1725059440346,-2174.19999968,0.00032866,4]
[336715469,1725059443211,-805.80000001,0.00032866,4]
[336715470,1725059443224,-882.96114551,0.00032866,4]
[336715471,1725059443237,-4205.00626853,0.00032866,4]
[336715478,1725059443500,-6396.42890753,0.00032866,4]
[336715479,1725059443520,-53127.78146135,0.00032866,4]
[336715506,1725059469741,161.489587,0.0001863,2]
[336715512,1725059600191,158.978905,0.00014247,2]
[336715523,1725059975961,-163.899706,0.0001863,2]
[336715531,1725060150517,256.57,0.00025,120]
[336715548,1725060334146,-158.978905,0.00023688,2]
[336715549,1725060334171,-225.533189,0.00030538,2]
[336715550,1725060334195,-3151.0571896,0.00032121,60]
[336715551,1725060334218,-796.47050663,0.00032766,2]
[336715552,1725060334242,-320.0,0.00032775,2]
[336715553,1725060334265,-320.0,0.00032775,2]
[336715554,1725060334288,-1675.49277051,0.00032776,2]
[336715555,1725060334312,-607.96597598,0.00032865,2]
[336715556,1725060334335,-798.84703228,0.00032865,5]
[336715557,1725060334359,-28744.153809,0.00032866,4]
[336715560,1725060444092,-225.53319,0.00030211,2]
[336715561,1725060444117,-18274.99537218,0.00032776,120]
[336715562,1725060444138,-2501.083944,0.00032776,2]
[336715563,1725060444159,-1453.5,0.00032856,3]
[336715564,1725060444180,-1211.25,0.00032856,3]
[336715565,1725060444202,-399.42351614,0.00032865,5]
[336715566,1725060444227,-24713.50884103,0.00032866,4]
[336715567,1725060445138,-328068.760257,0.00032866,4]
[336715573,1725060546111,-444.75214202,0.0002,2]
[336715574,1725060556115,-50058.51627196,0.0002,2]
[336715576,1725060606786,163.899706,0.0001863,2]
[336715589,1725060632088,-1507.94349345,0.00032776,2]
[336715590,1725060632098,-153.0,0.000328,2]
[336715591,1725060632107,-1009.38,0.00032856,3]
[336715592,1725060632116,-841.15,0.00032856,3]
[336715593,1725060632125,-29793.21349624,0.00032866,4]
[336715613,1725060640252,-700.96,0.00032856,3]
[336715614,1725060640262,-11826.79500432,0.00032866,4]
[336715615,1725060640273,-12214.81965461,0.00032866,4]
[336715616,1725060640285,-15285.6,0.00032866,4]
[336715617,1725060640322,-188135.44769266,0.00032866,4]
[336715618,1725060640390,-20217.54145734,0.00032866,4]
[336715627,1725060643196,-73946.88429299,0.00032866,4]
[336715635,1725060646105,-91.69049584,0.00032866,4]
[336715636,1725060646116,-500.0,0.00032873,5]
[336715637,1725060646125,-1180.93224164,0.00032876,5]
[336715638,1725060646135,-199.71175807,0.00032876,5]
[336715639,1725060646145,-500.0,0.00032876,31]
[336715640,1725060646155,-500.0,0.00032876,31]
[336715641,1725060646165,-500.0,0.00032876,31]
[336715642,1725060646174,-503.54409052,0.00032876,31]
[336715643,1725060646184,-512.22767555,0.00032876,31]
[336715644,1725060646194,-500.0,0.00032876,31]
[336715645,1725060646203,-500.0,0.00032876,31]
[336715646,1725060646213,-520.64297884,0.00032876,30]
[336715647,1725060646222,-212.56,0.00032876,31]
[336715648,1725060646232,-500.0,0.00032876,31]
[336715649,1725060646241,-500.0,0.00032876,31]
[336715650,1725060646251,-500.0,0.00032876,31]
[336715651,1725060646262,-311.89228795,0.00032876,31]
[336715652,1725060646272,-500.0,0.00032876,31]
[336715653,1725060646282,-500.29569477,0.00032876,31]
[336715654,1725060646292,-500.0,0.00032876,31]
[336715655,1725060646302,-500.0,0.00032876,31]
[336715656,1725060646312,-500.67802627,0.00032876,31]
[336715657,1725060646322,-500.0,0.00032876,31]
[336715658,1725060646332,-500.0,0.00032876,31]
[336715659,1725060646342,-500.0,0.00032876,31]
[336715660,1725060646353,-500.0,0.00032876,31]
[336715661,1725060646363,-626.03078535,0.00032876,31]
[336715662,1725060646372,-500.0,0.00032876,31]
[336715663,1725060646382,-500.0,0.00032876,31]
[336715664,1725060646392,-500.0,0.00032876,31]
[336715665,1725060646403,-500.0,0.00032876,31]
[336715666,1725060646414,-500.0,0.00032876,31]
[336715667,1725060646424,-500.0,0.00032876,31]
[336715668,1725060646437,-500.0,0.00032876,31]
[336715669,1725060646448,-500.0,0.00032876,31]
[336715670,1725060646457,-150.0,0.00032876,31]
[336715671,1725060646472,-500.0,0.00032876,31]
[336715672,1725060646482,-500.0,0.00032876,31]
[336715673,1725060646493,-500.0,0.00032876,31]
[336715674,1725060646502,-405.41759828,0.00032876,31]
[336715675,1725060646512,-500.0,0.00032876,31]
[336715676,1725060646522,-500.0,0.00032876,31]
[336715677,1725060646531,-500.0,0.00032876,31]
[336715678,1725060646541,-500.0,0.00032876,31]
[336715679,1725060646551,-500.0,0.00032876,31]
[336715680,1725060646560,-500.0,0.00032876,31]
[336715681,1725060646570,-608.85846414,0.00032876,31]
[336715682,1725060646579,-500.0,0.00032876,31]
[336715683,1725060646589,-500.0,0.00032876,31]
[336715684,1725060646599,-229.40792576,0.00032876,31]
[336715685,1725060646608,-500.0,0.00032876,31]
[336715686,1725060646618,-501.01595461,0.00032876,31]
[336715687,1725060646628,-500.0,0.00032876,31]
[336715688,1725060646638,-500.0,0.00032876,31]
[336715689,1725060646647,-500.0,0.00032876,31]
[336715690,1725060646657,-500.0,0.00032876,31]
[336715691,1725060646666,-493.03358021,0.00032876,31]
[336715692,1725060646676,-500.0,0.00032876,31]
[336715693,1725060646686,-500.0,0.00032876,31]
[336715694,1725060646696,-500.0,0.00032876,31]
[336715695,1725060646705,-500.0,0.00032876,31]
[336715696,1725060646716,-500.0,0.00032876,31]
[336715697,1725060646725,-500.0,0.00032876,31]
[336715698,1725060646735,-500.0,0.00032876,31]
[336715699,1725060646745,-500.0,0.00032876,31]
[336715700,1725060646755,-500.0,0.00032876,31]
[336715701,1725060646765,-379.10228694,0.00032876,31]
[336715702,1725060646779,-500.0,0.00032876,31]
[336715703,1725060646790,-500.0,0.00032876,31]
[336715704,1725060646799,-500.0,0.00032876,31]
[336715705,1725060646809,-500.0,0.00032876,31]
[336715706,1725060646821,-500.0,0.00032876,31]
[336715707,1725060646831,-500.0,0.00032876,31]
[336715708,1725060646841,-500.0,0.00032876,31]
[336715709,1725060646852,-500.0,0.00032876,31]
[336715710,1725060646862,-25.04262826,0.00032876,31]
[336715711,1725060646891,-474.95737174,0.00032876,31]
[336715712,1725060646908,-500.0,0.00032876,31]
[336715713,1725060646917,-500.0,0.00032876,31]
[336715714,1725060647121,-500.0,0.00032876,31]
[336715715,1725060647133,-500.0,0.00032876,31]
[336715716,1725060647144,-500.0,0.00032876,31]